[Event "4th Tata Steel India Blitz Open 2022"]
[Site "Kolkota"]
[Date "2022.12.04"]
[Round "14.4"]
[White "Nakamura, Hikaru"]
[Black "Vidit, Santosh Gujrathi"]
[Result "1-0"]
[ECO "A20"]
[WhiteElo "2768"]
[BlackElo "2724"]
[Annotator "TA"]
[PlyCount "89"]
[EventDate "2022.11.29"]
[EventType "tourn"]
[EventCountry "IND"]
[SourceTitle "playchess.com"]
[Source "ChessBase"]
[SourceQuality "1"]
[TimeControl "180+2"]

{[%evp 9,89,-8,0,-16,3,0,0,0,0,0,0,-20,-12,-6,-8,-7,-14,-32,17,-46,-56,-50,-25,-34,-39,-37,-49,-52,-20,-30,-42,-38,-34,-56,-72,-88,-89,-77,-78,-88,-83,-116,-52,-62,-63,-65,0,0,14,5,7,-120,0,-147,-139,-148,-144,-129,0,-66,-66,-79,29968,29969,29965,29965,6605,901,822,388,330,133,133,15,29961,32,29993,29994,29997,29987,29998,29999]} 1. c4 {[%emt 0:00:01]} e5 {[%emt 0:00:02]} 2. d3 {[%emt 0:00:01]} Nf6 {[%emt 0:00:04]} 3. a3 {[%emt 0:00:01]} Nc6 {[%emt 0:00:04]} 4. b4 {[%emt 0:00:09]} d5 {[%emt 0:00:05]} 5. cxd5 {[%emt 0:00:01]} Nxd5 {[%emt 0:00:01]} 6. Nf3 {[%emt 0:00:06] [#] A20: English Opening: 1...e5.} Bd6 $146 {[%emt 0:00:25]} ({Predecessor:} 6... a5 7. b5 Nd4 8. Bb2 Nxf3+ 9. gxf3 Bd6 10. Nd2 O-O 11. Nc4 Qh4 12. Qd2 Re8 {½-½ (35) Grandelius,N (2666)-Blomqvist,E (2537) Malmo 2021}) 7. e4 {[%emt 0:00:13]} Nde7 {[%emt 0:00:09]} 8. Bb2 {[%emt 0:00:07] The position is equal.} a6 {[%emt 0:00:04]} 9. Nbd2 {[%emt 0:00:04]} O-O {[%emt 0:00:03]} 10. Nc4 {[%emt 0:00:07][%cal Rc4e5]} Ng6 {[%emt 0:00:01]} 11. g3 {[%emt 0:00:08]} b5 {[%emt 0:00:14]} 12. Ne3 {[%emt 0:00:07]} a5 {[%emt 0:00:00]} 13. bxa5 {[%emt 0:00:02]} Nxa5 {[%emt 0:00:13]} (13... Be6 $15) 14. Bg2 {[%emt 0:00:19]} (14. h4 $1 $11) 14... c5 $15 {[%emt 0:00:03]} 15. h4 {[%emt 0:00:07][%cal Bh2h4,Bh4h5,Bh5h6][%mdl 32]} Re8 {[%emt 0:00:06]} 16. h5 {[%emt 0:00:01]} Nf8 {[%emt 0:00:01]} 17. h6 {[%emt 0:00:01]} g6 {[%emt 0:00:01]} 18. O-O {[%emt 0:00:06]} f6 {[%emt 0:00:05]} 19. Nd5 {[%emt 0:00:03]} Ne6 {[%emt 0:00:11]} 20. Nh2 {[%emt 0:00:07]} Rf8 {[%emt 0:00:19]} (20... Nc6 {with more complications.} 21. Ng4 Rf8 22. f4 Ned4) 21. Rb1 {[%emt 0:00:07]} Nc6 {[%emt 0:00:08]} 22. Nf3 {[%emt 0:00:12]} Kh8 {[%emt 0:00:18]} 23. Bh3 {[%emt 0:00:14]} Rb8 {[%emt 0:00:04]} 24. Kh2 {[%emt 0:00:13]} Rf7 {[%emt 0:00:02]} 25. Bc1 {[%emt 0:00:01]} Nc7 {[%emt 0:00:16]} (25... Bd7 $17) 26. Bxc8 {[%emt 0:00:14]} Qxc8 {[%emt 0:00:01]} 27. Qb3 {[%emt 0:00:02][%cal Od5b4]} c4 {[%emt 0:00:28]} (27... Ne6 $15) 28. dxc4 $11 {[%emt 0:00:16]} bxc4 {[%emt 0:00:01]} 29. Qxc4 {[%emt 0:00:01]} Rxb1 {[%emt 0:00:05]} 30. Qxc6 {[%emt 0:00:01]} (30. Nc3 $11 Ne6 31. Nxb1) 30... Qd7 {[%emt 0:00:05]} (30... Bxa3 $17 {White must now prevent ...Qa6.} 31. Bxa3 Rxf1) 31. Qc2 {[%emt 0:00:13]} (31. Qxd7 $11 Rxd7 32. Nd2) 31... Rb8 $17 {[%emt 0:00:02]} 32. Rd1 {[%emt 0:00:02][%cal Bf1d1,Bd1d5,Bd5d8][%mdl 32]} Nxd5 {[%emt 0:00:06]} 33. Rxd5 {[%emt 0:00:01]} Qg4 {[%emt 0:00:04]} (33... Qc7 $1 $17 {[%cal Rc7c2]} 34. Qxc7 Bxc7) 34. Kg2 {[%emt 0:00:08]} (34. Rxd6 $11 Qxf3 35. Be3) 34... Bf8 $1 $15 {[%emt 0:00:01] ...Qc8 is the strong threat.} 35. a4 {[%emt 0:00:02]} Rb4 $2 {[%emt 0:00:05][%mdl 8192]} (35... Qc8 $17 36. Qxc8 Rxc8) 36. Rd8 {[%emt 0:00:02]} Kg8 {[%emt 0:00:07]} 37. Ba3 {[%emt 0:00:16]} Qxe4 {[%emt 0:00:01]} 38. Qc8 {[%emt 0:00:01]} (38. Qc5 $142 Qd3 39. Rxf8+ (39. Rxd3 Bxc5 40. Bxb4 Bxb4 $11) 39... Rxf8 40. Bxb4) 38... g5 $18 {[%emt 0:00:09]} 39. Bxb4 {[%emt 0:00:02]} (39. Qc5 $142 Qd3 40. Rxf8+ (40. Rxd3 Bxc5 41. Bxb4 Bxb4 $14) 40... Rxf8 41. Bxb4) 39... Qxb4 {[%emt 0:00:02]} 40. Qc6 {[%emt 0:00:08] Against Qe4} (40. Qe6 $18 {has better winning chances. Threatens to win with Rd7.} Qe7 41. Qd5) 40... g4 $16 {[%emt 0:00:03]} 41. Nh4 {[%emt 0:00:01] White is more active.} (41. Nh2 $1 $16 {Hoping for Qe6.} f5 42. Rd7 Rxd7 43. Qxd7 Qe4+ 44. Kg1 Bxh6 45. Nf1) 41... f5 $2 {[%emt 0:00:01][%mdl 8192] [#]} (41... Qb7 $11 42. Rc8 (42. Qxb7 Rxb7 43. Ra8 Kf7 $11) 42... Qxc6+ 43. Rxc6 Ra7) 42. Qd5 $2 {[%emt 0:00:05]} (42. Ng6 $1 {[%mdl 512] mates} Qe4+ 43. Qxe4 fxe4 44. Rxf8+ Rxf8 45. Nxf8 Kxf8 46. a5 Kf7 47. a6) 42... Qxa4 $2 {[%emt 0:00:03][%mdl 8192]} (42... Qb7 $14) 43. Nxf5 {[%emt 0:00:02] White mates.} ({Inferior is} 43. Qxe5 Qe4+ 44. Qxe4 fxe4 $11) 43... e4 {[%emt 0:00:02]} 44. Nd6 {[%emt 0:00:07]} Qa3 {[%emt 0:00:02]} 45. Qxf7+ {[%emt 0:00:02] Weighted Error Value: White=0.68/Black=0.60} 1-0

[Event "4th Tata Steel India Blitz Open 2022"]
[Site "Kolkota"]
[Date "2022.12.04"]
[Round "14.5"]
[White "Nihal Sarin"]
[Black "Rameshbabu, Praggnanandhaa"]
[Result "0-1"]
[ECO "D02"]
[WhiteElo "2670"]
[BlackElo "2678"]
[Annotator "TA"]
[PlyCount "116"]
[EventDate "2022.11.29"]
[EventType "tourn"]
[EventCountry "IND"]
[SourceTitle "playchess.com"]
[Source "ChessBase"]
[SourceQuality "1"]
[TimeControl "180+2"]

{[%evp 9,116,6,0,4,8,5,29,19,23,15,25,17,35,29,27,28,26,-17,65,65,70,15,54,53,49,45,75,46,47,16,36,0,0,0,0,0,1,7,33,54,81,82,137,131,130,131,143,128,135,125,121,107,131,128,133,126,114,93,93,0,0,-407,-395,-29997,-643,-631,-544,-544,-466,-479,-440,-478,-477,-452,-458,-633,-569,-882,-875,-866,-837,-862,-845,-834,-824,-944,-756,-1904,-1887,-2160,-2111,-1890,-1854,-12846,-1769,-1961,-1649,-7020,-6167,-12836,-12837,-12844,-12844,-12845,-12845,-12845,-12845,-12846,-12847]} 1. d4 {[%emt 0:00:02]} Nf6 {[%emt 0:00:01]} 2. Nf3 {[%emt 0:00:02]} d5 {[%emt 0:00:12]} 3. c3 {[%emt 0:00:01]} e6 {[%emt 0:00:10]} 4. Bf4 {[%emt 0:00:03]} Bd6 {[%emt 0:00:02]} 5. e3 {[%emt 0:00:01]} O-O {[%emt 0:00:03]} 6. Nbd2 {[%emt 0:00:02] D02: 1 d4 d5 2 Nf3 sidelines, including 2...Nf6 3 g3 and 2...Nf6 3 Bf4.} c5 {[%emt 0:00:00]} 7. Bd3 {[%emt 0:00:01]} Qc7 {[%emt 0:00:05]} 8. Bxd6 {[%emt 0:00:02] White has an edge.} Qxd6 {[%emt 0:00:01]} 9. Ne5 {[%emt 0:00:01]} b6 {[%emt 0:00:05]} 10. f4 {[%emt 0:00:04]} Ba6 {[%emt 0:00:01]} 11. Bc2 {[%emt 0:00:03]} (11. Bxa6 {simplifies} Nxa6 12. g4 Nd7 13. g5) 11... Nc6 {[%emt 0:00:05]} 12. g4 {[%emt 0:00:02]} Nd7 {[%emt 0:00:11]} 13. g5 {[%emt 0:00:04] [#]} (13. Qf3 {simplifies} Rad8 14. Nxc6 Qxc6 15. O-O-O) 13... f5 $5 $146 {[%emt 0:00:33][%mdl 8] An interesting novelty.} ({Better is} 13... cxd4 $1 $11 14. exd4 (14. Qh5 $2 g6 $19) 14... Ndxe5 15. fxe5 Nxe5 $1 {[%mdl 512]} 16. dxe5 Qxe5+ 17. Kf2 d4) ({Predecessor:} 13... cxd4 14. Nxd7 Qxd7 15. exd4 Qc7 16. Rg1 Qxf4 17. Qf3 Qxf3 18. Nxf3 f6 19. a4 Rac8 {½-½ (30) Ding,L (2808)-Xu,Y (2507) Fuling 2022}) 14. gxf6 $14 {[%emt 0:00:04]} Nxf6 {[%emt 0:00:01]} 15. Rg1 {[%emt 0:00:34]} (15. Qf3 $14) 15... Rac8 {[%emt 0:00:02]} 16. Nxc6 {[%emt 0:00:32]} Rxc6 {[%emt 0:00:02]} 17. Nf3 {[%emt 0:00:01]} cxd4 {[%emt 0:00:22]} 18. Nxd4 {[%emt 0:00:02]} (18. Qxd4 {seems wilder.} Rc7 19. Rg2 Qc5 20. Qe5) 18... Rc7 {[%emt 0:00:06]} 19. Qf3 {[%emt 0:00:03]} (19. Nf3 {simplifies} Qc5 20. Qd4 Qxd4 21. Nxd4 Re8 22. Ba4) 19... e5 $1 {[%emt 0:00:30]} 20. fxe5 {[%emt 0:00:54]} (20. Nf5 $5 {[%cal Rf5d6]} Qc5 21. Rg5 $11 (21. fxe5 Ne4 $15)) 20... Qxe5 {[%emt 0:00:01]} 21. O-O-O {[%emt 0:00:01]} Ne4 {[%emt 0:00:22]} ({Don't take} 21... Qxh2 22. Rh1 (22. Ne6 Be2 $17) 22... Qe5 23. Rxh7 Nxh7 24. Bxh7+ Kxh7 25. Qxf8 $16) 22. Qh3 {[%emt 0:00:02] Strongly threatening Qe6+.} Bc8 {[%emt 0:00:33] Against Qe6+} 23. Qh4 {[%emt 0:00:03]} Rcf7 {[%emt 0:00:01]} (23... g6 {simplifies} 24. Bxe4 Qxe4 25. Qxe4 dxe4 26. h4 Rf6) 24. Nc6 $40 {[%emt 0:00:38][%mdl 128] Black needs to defend precisely.} Qe8 {[%emt 0:00:09]} 25. Nb4 {[%emt 0:00:07]} Bb7 {[%emt 0:00:05]} (25... Kh8 $142) 26. Nxd5 $16 {[%emt 0:00:04]} Bxd5 {[%emt 0:00:00]} 27. Rxd5 {[%emt 0:00:01]} Nf6 {[%emt 0:00:02] [#]} 28. Qh3 {[%emt 0:00:14]} Re7 {[%emt 0:00:05][%cal Oe7e3] [#]} 29. Rdg5 $1 {[%emt 0:00:02]} Kh8 {[%emt 0:00:03]} 30. R5g3 {[%emt 0:00:04]} Qb5 {[%emt 0:00:04]} 31. Kb1 {[%emt 0:00:03]} Qe5 {[%emt 0:00:03]} 32. Qg2 {[%emt 0:00:01][%cal Rg3g7]} g6 {[%emt 0:00:02]} 33. Qh3 {[%emt 0:00:05]} Nh5 {[%emt 0:00:02]} 34. Rg5 {[%emt 0:00:02]} (34. Rf3 $16 Rxf3 35. Qxf3) 34... Qxe3 $11 {[%emt 0:00:01]} 35. Qh4 {[%emt 0:00:01][%mdl 8192] Black converts the advantage convincingly.} (35. Qxe3 $11 {and White is okay.} Rxe3 36. R5g2) 35... Rf4 $19 {[%emt 0:00:02]} 36. R1g4 {[%emt 0:00:05]} (36. Qxh5 $19 Qxg1+ 37. Rxg1 gxh5 38. Bb3) 36... Qe1+ {[%emt 0:00:01]} (36... Rf1+ $142 37. Bd1 Qd3+ 38. Kc1 Rxd1#) 37. Qxe1 {[%emt 0:00:01] Black is clearly winning.} Rxe1+ {[%emt 0:00:01]} 38. Bd1 {[%emt 0:00:01]} Rxg4 {[%emt 0:00:01]} 39. Rxg4 {[%emt 0:00:01]} Rxd1+ {[%emt 0:00:00][%mdl 4096] Endgame KRN-KR} 40. Kc2 {[%emt 0:00:00]} Rd7 {[%emt 0:00:01]} 41. a4 {[%emt 0:00:01]} Nf6 {[%emt 0:00:02]} 42. Rh4 {[%emt 0:00:02]} Kg7 {[%emt 0:00:01]} 43. b4 {[%emt 0:00:00]} g5 {[%emt 0:00:00]} 44. Rh3 {[%emt 0:00:02]} g4 {[%emt 0:00:01]} 45. Re3 {[%emt 0:00:02]} h5 {[%emt 0:00:01]} 46. c4 {[%emt 0:00:00]} h4 {[%emt 0:00:02]} 47. Kb3 {[%emt 0:00:01]} Kg6 {[%emt 0:00:01] ...Rd2 is the strong threat.} 48. c5 {[%emt 0:00:01]} bxc5 {[%emt 0:00:03]} 49. bxc5 {[%emt 0:00:01]} Rc7 {[%emt 0:00:00]} 50. Kc4 {[%emt 0:00:05]} Nd7 {[%emt 0:00:02]} 51. Re7 {[%emt 0:00:05]} Rxc5+ {[%emt 0:00:02]} 52. Kd4 {[%emt 0:00:00]} Rc7 {[%emt 0:00:01]} 53. a5 {[%emt 0:00:00]} g3 {[%emt 0:00:12]} 54. hxg3 {[%emt 0:00:01]} h3 {[%emt 0:00:01][%cal Bh4h3,Bh3h2][%mdl 32]} 55. Re6+ {[%emt 0:00:08]} Nf6 {[%emt 0:00:01]} 56. Re1 {[%emt 0:00:04]} h2 {[%emt 0:00:02]} 57. Rh1 {[%emt 0:00:00]} Ng4 {[%emt 0:00:00]} 58. a6 {[%emt 0:00:01]} Rh7 {[%emt 0:00:02] Weighted Error Value: White=0.48/Black=0.27 (precise)} 0-1

[Event "4th Tata Steel India Blitz Open 2022"]
[Site "Kolkota"]
[Date "2022.12.04"]
[Round "15.1"]
[White "Rameshbabu, Praggnanandhaa"]
[Black "Abdusattorov, Nodirbek"]
[Result "1/2-1/2"]
[ECO "D02"]
[WhiteElo "2678"]
[BlackElo "2713"]
[Annotator "TA"]
[PlyCount "105"]
[EventDate "2022.11.29"]
[EventType "tourn"]
[EventCountry "IND"]
[SourceTitle "playchess.com"]
[Source "ChessBase"]
[SourceQuality "1"]
[TimeControl "180+2"]

{[%evp 11,105,30,20,25,27,10,10,22,39,32,44,28,47,43,47,43,39,40,42,16,20,22,15,17,14,24,17,0,0,-12,-8,-6,-15,-16,-9,-17,0,0,0,0,0,0,45,0,45,47,60,0,22,0,0,0,0,0,0,0,0,0,0,0,0,-76,-78,-89,-33,-33,-30,-29,-28,-20,-30,-30,-33,-71,-71,-70,-19,-49,0,0,0,0,0,0,0,0,0,0,0,0,0,0,0,0,0,0]} 1. Nf3 {[%emt 0:00:04]} d5 {[%emt 0:00:01]} 2. g3 {[%emt 0:00:01]} Nc6 {[%emt 0:00:01]} 3. d4 {[%emt 0:00:01]} Bf5 {[%emt 0:00:02]} 4. Bg2 {[%emt 0:00:01]} Nb4 {[%emt 0:00:02]} 5. Na3 {[%emt 0:00:02]} e6 {[%emt 0:00:01]} 6. O-O {[%emt 0:00:01]} Be7 {[%emt 0:00:01]} 7. Ne5 {[%emt 0:00:09] D02: 1 d4 d5 2 Nf3 sidelines, including 2...Nf6 3 g3 and 2...Nf6 3 Bf4.} Nf6 {[%emt 0:00:05]} 8. c3 {[%emt 0:00:02] Against c5} Nc6 {[%emt 0:00:01]} 9. Qa4 {[%emt 0:00:01]} O-O {[%emt 0:00:02]} 10. Nxc6 {[%emt 0:00:01]} bxc6 {[%emt 0:00:01]} 11. Qxc6 {[%emt 0:00:02]} h5 {[%emt 0:00:01]} 12. c4 {[%emt 0:00:01]} Rb8 {[%emt 0:00:11]} 13. c5 {[%emt 0:00:02]} Qd7 $1 {[%emt 0:00:02]} 14. Qxd7 {[%emt 0:00:03]} Nxd7 {[%emt 0:00:01]} 15. e4 {[%emt 0:00:04] [#]} Bxe4 $146 {[%emt 0:00:11]} ({Predecessor:} 15... dxe4 16. Nc4 Rb4 17. b3 Nb8 18. Bd2 Rb5 19. Na5 Bg5 20. Bxg5 Rxa5 21. a4 Nc6 {1-0 (40) Banusz,T (2611)-Borisek,J (2577) Chennai 2022}) 16. Bxe4 {[%emt 0:00:02]} dxe4 {[%emt 0:00:01]} 17. Nc4 {[%emt 0:00:02]} f5 {[%emt 0:00:53]} 18. Bf4 {[%emt 0:00:22]} Rfc8 {[%emt 0:00:01]} 19. h4 {[%emt 0:00:04]} Nf6 {[%emt 0:00:06]} 20. b3 {[%emt 0:00:12]} Nd5 {[%emt 0:00:01]} 21. Be5 {[%emt 0:00:07]} Bf6 {[%emt 0:00:08]} 22. f3 {[%emt 0:00:15]} exf3 {[%emt 0:00:17]} 23. Rxf3 {[%emt 0:00:02]} Re8 {[%emt 0:00:04]} 24. Re1 {[%emt 0:00:04]} Kf7 {[%emt 0:00:07]} 25. a3 {[%emt 0:00:20]} Rbd8 {[%emt 0:00:07]} 26. b4 {[%emt 0:00:10]} a6 {[%emt 0:00:00]} 27. Kg2 {[%emt 0:00:34]} (27. Rb3 $5 {[%cal Ra3a4]}) 27... Rd7 {[%emt 0:00:03]} 28. Rb3 {[%emt 0:00:05]} Rb8 {[%emt 0:00:17]} 29. Na5 {[%emt 0:00:06]} (29. Reb1 $14) 29... Ne7 {[%emt 0:00:03]} ({Resist} 29... Bxe5 30. Nc6 (30. Rxe5 Rg8 $11) 30... Bxg3 31. Rxg3 $16 (31. Nxb8 Rd8 $16)) 30. Bxf6 {[%emt 0:00:05]} (30. c6 {is more complex.} Rd5 31. Bxc7 Rc8 32. Be5) 30... gxf6 {[%emt 0:00:03]} 31. Rbe3 {[%emt 0:00:02]} Rxd4 {[%emt 0:00:05] [#] White must now prevent ...e5.} 32. Rxe6 {[%emt 0:00:02]} Rd2+ {[%emt 0:00:10]} (32... Nd5 {keeps more tension.} 33. Nc6 Rg4 34. Nxb8 Nf4+) 33. R6e2 {[%emt 0:00:22]} Rxe2+ {[%emt 0:00:01]} 34. Rxe2 $11 {[%emt 0:00:01][%mdl 4096] Endgame KRN-KRN} Rg8 {[%emt 0:00:01]} 35. Kf3 {[%emt 0:00:13] Against f4} Rg4 {[%emt 0:00:01][%cal Of5f4]} 36. Nb7 {[%emt 0:00:02] Against f4} (36. Rd2 $11 {keeps the balance.}) 36... Nc6 $17 {[%emt 0:00:01] [#] Strongly threatening ...Nd4+.} 37. Re3 {[%emt 0:00:13]} Ne5+ {[%emt 0:00:07]} ({Black should try} 37... Rc4 $17) 38. Ke2 $1 $15 {[%emt 0:00:03]} f4 {[%emt 0:00:04]} 39. gxf4 {[%emt 0:00:01]} Rxf4 {[%emt 0:00:02]} 40. Nd8+ {[%emt 0:00:01]} Ke7 $1 {[%emt 0:00:03]} 41. Nc6+ {[%emt 0:00:01]} Ke6 {[%emt 0:00:01]} 42. a4 {[%emt 0:00:12]} Rxh4 {[%emt 0:00:06]} 43. b5 {[%emt 0:00:03]} Rxa4 {[%emt 0:00:05]} (43... Rh2+ $15 44. Kf1 axb5 45. axb5 Rh1+ 46. Ke2 Rh2+ 47. Kf1 Rb2) 44. b6 $11 {[%emt 0:00:03] Hoping for b7.} cxb6 {[%emt 0:00:01]} (44... Ra2+ $15 45. Kd1 cxb6 46. cxb6 Kd7 47. Nxe5+ fxe5 48. Rxe5 h4) 45. cxb6 {[%emt 0:00:01] Threatens to win with b7. The position is equal.} Kd6 {[%emt 0:00:15]} 46. Nxe5 {[%emt 0:00:02]} fxe5 {[%emt 0:00:21] KR-KR} 47. Rb3 {[%emt 0:00:01]} Re4+ {[%emt 0:00:00]} 48. Kd2 {[%emt 0:00:05]} (48. Kd1 $5 Rd4+ $8 49. Ke2 Re4+ 50. Kd1 Rd4+ 51. Ke2 Re4+ $11) 48... Rd4+ {[%emt 0:00:02]} 49. Ke2 {[%emt 0:00:04] b7 would kill now.} (49. Ke1 $5 Re4+ $8 50. Kd2 Rd4+ 51. Ke1 Re4+ 52. Kd2 $11) 49... Re4+ $1 {[%emt 0:00:02]} 50. Kd2 $1 {[%emt 0:00:00] White wants to mate with b7.} Rd4+ {[%emt 0:00:02]} 51. Ke2 {[%emt 0:00:04] White threatens b7 and mate.} (51. Ke1 $5 Re4+ $8 52. Kd2 $11) 51... Re4+ $1 {[%emt 0:00:08]} 52. Kd2 {[%emt 0:00:00] Threatening mate with b7.} (52. Kd1 $5 Rd4+ $8 53. Ke2 $11) 52... Rd4+ {[%emt 0:00:01]} 53. Ke2 {[%emt 0:00:01] Weighted Error Value: White=0.09 (flawless) /Black=0.10 (very precise)} (53. Ke1 $5 Re4+ $8 54. Kd2 $11) 1/2-1/2

[Event "4th Tata Steel India Blitz Open 2022"]
[Site "Kolkota"]
[Date "2022.12.04"]
[Round "15.2"]
[White "Gukesh D"]
[Black "Vidit, Santosh Gujrathi"]
[Result "1-0"]
[ECO "D87"]
[WhiteElo "2725"]
[BlackElo "2724"]
[Annotator "TA"]
[PlyCount "71"]
[EventDate "2022.11.29"]
[EventType "tourn"]
[EventCountry "IND"]
[SourceTitle "playchess.com"]
[Source "ChessBase"]
[SourceQuality "1"]
[TimeControl "180+2"]

{[%evp 19,71,12,10,19,37,37,37,20,41,28,50,26,20,-1,8,19,12,30,12,18,11,8,38,21,27,21,257,270,283,285,379,374,422,418,511,500,621,610,580,564,867,827,1077,1081,29984,1680,1742,1742,1085,769,1374,1598,1174,1126]} 1. d4 {[%emt 0:00:02]} Nf6 {[%emt 0:00:03]} 2. c4 {[%emt 0:00:01]} g6 {[%emt 0:00:02]} 3. Nc3 {[%emt 0:00:02]} d5 {[%emt 0:00:01]} 4. cxd5 {[%emt 0:00:04]} Nxd5 {[%emt 0:00:01]} 5. e4 {[%emt 0:00:01]} Nxc3 {[%emt 0:00:01]} 6. bxc3 {[%emt 0:00:01]} Bg7 {[%emt 0:00:02]} 7. Bc4 {[%emt 0:00:01]} c5 {[%emt 0:00:02]} 8. Ne2 {[%emt 0:00:02]} O-O {[%emt 0:00:02]} 9. Be3 {[%emt 0:00:01]} Nc6 {[%emt 0:00:02]} 10. O-O {[%emt 0:00:03]} e6 {[%emt 0:00:03] 10...Bg4 is the modern continuation.} 11. dxc5 {[%emt 0:00:06] D87: Exchange Grünfeld: Classical Line: Variations without ...cxd4.} Ne5 {[%emt 0:00:10]} 12. Qxd8 Rxd8 {[%emt 0:00:01]} 13. Rfd1 {[%emt 0:00:05] White is slightly better.} Bd7 {[%emt 0:00:05]} 14. Bb3 {[%emt 0:00:02] [#]} Bb5 $146 {[%emt 0:00:11]} ({Predecessor:} 14... Bc6 15. f3 Rdc8 16. Nf4 a5 17. a4 Be8 18. Bd4 Nc6 19. Bxg7 Kxg7 20. Nd3 Nb8 {½-½ (46) Swiercz,D (2652)-Shankland,S (2712) Saint Louis 2022}) 15. Nd4 {[%emt 0:00:09]} Ba6 {[%emt 0:00:03]} 16. f3 {[%emt 0:00:33]} Rdc8 {[%emt 0:00:23] [#]} (16... Bf8 $5 {[%cal Rf8c5]}) 17. Nxe6 $1 {[%emt 0:00:37]} fxe6 {[%emt 0:00:01]} 18. Bxe6+ {[%emt 0:00:02]} Kf8 {[%emt 0:00:01]} 19. Bxc8 {[%emt 0:00:01]} Rxc8 {[%emt 0:00:01]} 20. Rab1 {[%emt 0:00:10]} Nd3 {[%emt 0:00:20] [#]} 21. Rxd3 $1 {[%emt 0:00:05]} Bxd3 {[%emt 0:00:03] A strong pair of Bishops.} 22. Rxb7 {[%emt 0:00:01] And now Bd4 would win.} Bxc3 {[%emt 0:00:24] A mistake that costs the game.} (22... Bf6 $11 {and Black has nothing to worry.}) 23. Rb3 $18 {[%emt 0:00:04]} ({Worse is} 23. Rxa7 Rb8 24. g3 (24. Rxh7 {leads to mate.} Rb1+ 25. Kf2 Be1+ 26. Kg1 Bh4+) 24... Rb1+ 25. Kg2 Bf1+ 26. Kf2 Bc4 $11) (23. Rxh7 a5 $11) 23... Bc4 {[%emt 0:00:11]} 24. Rxc3 {[%emt 0:00:02]} Bxa2 {[%emt 0:00:01][%mdl 4096] Endgame KRB-KRB} 25. Ra3 {[%emt 0:00:01][%csl LRa2,LRa7] Inhibits a6.} Be6 {[%emt 0:00:04]} 26. Rxa7 {[%emt 0:00:01]} h5 {[%emt 0:00:01]} 27. h4 {[%emt 0:00:03]} Rb8 {[%emt 0:00:01]} 28. Kf2 {[%emt 0:00:04]} Rb2+ {[%emt 0:00:01]} 29. Kg3 {[%emt 0:00:01]} Rc2 {[%emt 0:00:02]} 30. Kf4 {[%emt 0:00:15]} Rxg2 {[%emt 0:00:02]} 31. Ke5 {[%emt 0:00:01]} Bh3 {[%emt 0:00:05]} 32. c6 {[%emt 0:00:04]} (32. Kf6 $142 Kg8 33. Rg7+ Kh8 34. Bd4 Ra2 35. c6 Ra4 36. Be5 Ra5 37. Re7) 32... Rc2 {[%emt 0:00:02] White is clearly winning.} 33. Bh6+ {[%emt 0:00:16]} Kg8 {[%emt 0:00:08]} 34. Rg7+ {[%emt 0:00:05]} Kh8 {[%emt 0:00:01]} 35. Rxg6 {[%emt 0:00:01]} Kh7 {[%emt 0:00:01]} 36. Rf6 {[%emt 0:00:03] Weighted Error Value: White=0.04 (flawless) /Black=0.83} 1-0